lending/lending_fUSD_20250808
["ID","MTS","AMOUNT","RATE_DAILY","PERIOD"]
[377987845,1754651439503,-400.0,0.00018766,2]
[377987846,1754651439513,-400.0,0.00018766,2]
[377987847,1754651439522,-400.0,0.00018766,2]
[377987848,1754651439533,-400.0,0.00018766,2]
[377987849,1754651439543,-1348.56,0.00018766,2]
[377987850,1754651439553,-400.0,0.00018766,2]
[377987851,1754651439563,-1158.34,0.00018766,2]
[377987852,1754651439573,-1403.63,0.00018766,2]
[377987853,1754651439583,-997.72,0.00018766,2]
[377987854,1754651439593,-690.45,0.00018766,2]
[377987855,1754651439602,-400.0,0.00018766,2]
[377987856,1754651439611,-610.38,0.00018766,2]
[377987857,1754651439622,-1477.95,0.00018766,2]
[377987858,1754651439631,-817.07,0.00018766,2]
[377987859,1754651439640,-864.17,0.00018766,2]
[377987860,1754651439650,-400.0,0.00018766,2]
[377987861,1754651439660,-912.59,0.00018766,2]
[377987862,1754651439669,-400.0,0.00018766,2]
[377987863,1754651439678,-453.33,0.00018766,2]
[377987864,1754651439688,-469.02,0.00018766,2]
[377987865,1754651439697,-802.8,0.00018766,2]
[377987866,1754651439706,-1056.93,0.00018766,2]
[377987867,1754651439715,-400.0,0.00018766,2]
[377987869,1754651439725,-571.44,0.00018766,2]
[377987870,1754651439735,-500.0,0.00018766,2]
[377987871,1754651439744,-1231.3,0.00018766,2]
[377987872,1754651439754,-400.0,0.00018766,2]
[377987873,1754651439763,-805.16,0.00018766,2]
[377987874,1754651439772,-400.0,0.00018766,2]
[377987875,1754651439781,-874.47,0.00018766,2]
[377987876,1754651439790,-831.64,0.00018766,2]
[377987877,1754651439801,-634.38,0.00018766,2]
[377987878,1754651439810,-402.99,0.00018766,2]
[377987879,1754651439819,-400.0,0.00018766,2]
[377987880,1754651439829,-400.0,0.00018766,2]
[377987881,1754651439838,-400.0,0.00018766,2]
[377987882,1754651439847,-895.73,0.00018766,2]
[377987883,1754651439856,-1098.45,0.00018766,2]
[377987884,1754651439866,-400.0,0.00018766,2]
[377987885,1754651439876,-709.45,0.00018766,2]
[377987886,1754651439885,-400.0,0.00018766,2]
[377987887,1754651439894,-400.0,0.00018766,2]
[377987888,1754651439905,-1036.37,0.00018766,2]
[377987889,1754651439915,-400.0,0.00018766,2]
[377987890,1754651439925,-1247.93,0.00018766,2]
[377987891,1754651439935,-400.0,0.00018766,2]
[377987892,1754651439944,-887.39,0.00018766,2]
[377987893,1754651439954,-1375.92,0.00018766,2]
[377987894,1754651439963,-400.0,0.00018766,2]
[377987895,1754651439972,-400.0,0.00018766,2]
[377987896,1754651439982,-697.13,0.00018766,2]
[377987897,1754651439993,-400.0,0.00018766,2]
[377987898,1754651440002,-665.52,0.00018766,2]
[377987899,1754651440011,-400.0,0.00018766,2]
[377987900,1754651440020,-781.93,0.00018766,2]
[377987901,1754651440029,-1447.4,0.00018766,2]
[377987902,1754651440039,-400.0,0.00018766,2]
[377987903,1754651440048,-400.0,0.00018766,2]
[377987904,1754651440057,-400.0,0.00018766,2]
[377987905,1754651440066,-477.78,0.00018766,2]
[377987906,1754651440075,-1186.7,0.00018766,2]
[377987907,1754651440084,-483.18,0.00018766,2]
[377987908,1754651440093,-400.0,0.00018766,2]
[377987909,1754651440102,-1207.67,0.00018766,2]
[377987910,1754651440112,-400.0,0.00018766,2]
[377987911,1754651440121,-400.0,0.00018766,2]
[377987912,1754651440130,-400.0,0.00018766,2]
[377987913,1754651440139,-400.0,0.00018766,2]
[377987914,1754651440148,-400.0,0.00018766,2]
[377987915,1754651440158,-400.0,0.00018766,2]
[377987916,1754651440168,-534.85,0.00018766,2]
[377987917,1754651440178,-414.68,0.00018766,2]
[377987918,1754651440188,-400.0,0.00018766,2]
[377987919,1754651440208,-682.86,0.00018766,2]
[377987920,1754651440219,-608.4,0.00018766,2]
[377987921,1754651440230,-1073.32,0.00018766,2]
[377987922,1754651440239,-530.4,0.00018766,2]
[377987923,1754651440250,-526.73,0.00018766,2]
[377987924,1754651440261,-400.0,0.00018766,2]
[377987925,1754651440272,-400.0,0.00018766,2]
[377987926,1754651440282,-400.0,0.00018766,2]
[377987927,1754651440291,-874.97,0.00018766,2]
[377987928,1754651440300,-468.03,0.00018766,2]
[377987929,1754651440311,-1344.58,0.00018766,2]
[377987930,1754651440321,-400.0,0.00018766,2]
[377987931,1754651440330,-375.61914601,0.00018766,2]
[377987932,1754651440339,-779.35,0.00018766,2]
[377987933,1754651440349,-862.69,0.00018766,2]
[377987934,1754651440358,-811.74,0.00018766,2]
[377987935,1754651440368,-986.3,0.00018766,2]
[377987936,1754651440377,-400.0,0.00018766,2]
[377987937,1754651440388,-400.0,0.00018766,2]
[377987938,1754651440397,-901.02,0.00018766,2]
[377987939,1754651440407,-578.86,0.00018766,2]
[377987940,1754651440417,-981.07,0.00018766,2]
[377987941,1754651440426,-958.65,0.00018766,2]
[377987942,1754651440435,-411.18,0.00018766,2]
[377987943,1754651440444,-400.0,0.00018766,2]
[377987944,1754651440453,-1225.57,0.00018766,2]
[377987945,1754651440463,-713.99,0.00018766,2]
[377987946,1754651440473,-276.35108978,0.00018766,2]
[377987947,1754651440482,-400.0,0.00018766,2]
[377987948,1754651440492,-3414.83,0.00018766,2]
[377987949,1754651440501,-400.0,0.00018766,2]
[377987950,1754651440511,-587.56,0.00018766,2]
[377987951,1754651440521,-618.54,0.00018766,2]
[377987952,1754651440531,-400.0,0.00018766,2]
[377987953,1754651440541,-400.0,0.00018766,2]
[377987954,1754651440550,-400.0,0.00018766,2]
[377987955,1754651440559,-400.0,0.00018766,2]
[377987956,1754651440569,-400.0,0.00018766,2]
[377987957,1754651440580,-400.0,0.00018766,2]
[377987958,1754651440591,-421.22,0.00018766,2]
[377987959,1754651440601,-1463.86,0.00018766,2]
[377987960,1754651440611,-400.0,0.00018766,2]
[377987961,1754651440621,-560.05,0.00018766,2]
[377987962,1754651440631,-400.0,0.00018766,2]
[377987963,1754651440641,-404.7,0.00018766,2]
[377987964,1754651440651,-400.0,0.00018766,2]
[377987965,1754651440661,-460.73,0.00018766,2]
[377987966,1754651440671,-400.0,0.00018766,2]
[377987967,1754651440680,-416.46,0.00018766,2]
[377987968,1754651440690,-400.0,0.00018766,2]
[377987969,1754651440700,-491.41,0.00018766,2]
[377987970,1754651440710,-400.0,0.00018766,2]
[377987971,1754651440720,-650.13,0.00018766,2]
[377987972,1754651440730,-485.11,0.00018766,2]
[377987973,1754651440741,-400.0,0.00018766,2]
[377987974,1754651440752,-992.9,0.00018766,2]
[377987975,1754651440762,-400.0,0.00018766,2]
[377987976,1754651440772,-437.16,0.00018766,2]
[377987977,1754651440782,-1024.03,0.00018766,2]
[377987978,1754651440792,-400.0,0.00018766,2]
[377987979,1754651440802,-928.8,0.00018766,2]
[377987980,1754651440812,-400.0,0.00018766,2]
[377987981,1754651440821,-400.0,0.00018766,2]
[377987982,1754651440831,-880.77,0.00018766,2]
[377987983,1754651440841,-433.65,0.00018766,2]
[377987984,1754651440851,-400.0,0.00018767,2]
[377987985,1754651440861,-400.0,0.00018767,2]
[377987986,1754651440871,-400.0,0.00018767,2]
[377987987,1754651440882,-400.0,0.00018767,2]
[377987988,1754651440892,-400.0,0.00018767,2]
[377987989,1754651440903,-400.0,0.00018767,2]
[377987990,1754651440913,-461.84,0.00018767,2]
[377987991,1754651440923,-544.94,0.00018767,2]
[377987992,1754651440933,-400.0,0.00018767,2]
[377987993,1754651440943,-400.0,0.00018767,2]
[377987994,1754651440952,-474.13,0.00018767,2]
[377987995,1754651440963,-400.0,0.00018767,2]
[377987996,1754651440973,-400.0,0.00018767,2]
[377987997,1754651440983,-400.0,0.00018767,2]
[377987998,1754651440993,-6580.68,0.00018767,2]
[377987999,1754651441003,-1406.89,0.00018767,2]
[377988000,1754651441015,-400.0,0.00018767,2]
[377988001,1754651441025,-1581.17,0.00018767,2]
[377988002,1754651441035,-400.0,0.00018767,2]
[377988003,1754651441045,-449.02,0.00018767,2]
[377988004,1754651441054,-1072.7,0.00018767,2]
[377988005,1754651441064,-1370.49,0.00018767,2]
[377988006,1754651441074,-400.0,0.00018767,2]
[377988007,1754651441084,-1265.35,0.00018767,2]
[377988008,1754651441093,-871.69,0.00018767,2]
[377988009,1754651441104,-1433.6,0.00018767,2]
[377988010,1754651441114,-1773.68,0.00018767,2]
[377988011,1754651441124,-945.8,0.00018767,2]
[377988012,1754651441134,-400.0,0.00018767,2]
[377988013,1754651441144,-622.18,0.00018767,2]
[377988014,1754651441154,-934.68,0.00018767,2]
[377988015,1754651441164,-400.0,0.00018767,2]
[377988016,1754651441174,-2463.2,0.00018767,2]
[377988017,1754651441183,-932.68,0.00018767,2]
[377988018,1754651441193,-1171.29,0.00018767,2]
[377988019,1754651441203,-1131.28,0.00018767,2]
[377988020,1754651441213,-1834.92,0.00018767,2]
[377988021,1754651441223,-645.47,0.00018767,2]
[377988022,1754651441234,-444.33,0.00018767,2]
[377988023,1754651441244,-1428.37,0.00018767,2]
[377988024,1754651441253,-1330.99,0.00018767,2]
[377988025,1754651441263,-1835.98,0.00018767,2]
[377988026,1754651441277,-1215.15,0.00018767,2]
[377988027,1754651441287,-1410.41,0.00018767,2]
[377988028,1754651441297,-400.0,0.00018767,2]
[377988029,1754651441307,-1149.44,0.00018767,2]
[377988030,1754651441317,-1008.34,0.00018767,2]
[377988031,1754651441326,-400.0,0.00018767,2]
[377988032,1754651441336,-1128.75,0.00018767,2]
[377988033,1754651441346,-603.94,0.00018767,2]
[377988034,1754651441357,-1168.21,0.00018767,2]
[377988035,1754651441367,-1158.53,0.00018767,2]
[377988036,1754651441378,-400.0,0.00018767,2]
[377988037,1754651441387,-806.44,0.00018767,2]
[377988038,1754651441397,-998.13,0.00018767,2]
[377988039,1754651441407,-774.64,0.00018767,2]
[377988040,1754651441417,-400.0,0.00018767,2]
[377988041,1754651441427,-1455.32,0.00018767,2]
[377988042,1754651441438,-597.81,0.00018767,2]
[377988043,1754651441448,-1379.43,0.00018767,2]
[377988044,1754651441458,-3609.76,0.00018767,2]
[377988045,1754651441468,-854.08,0.00018767,2]
[377988046,1754651441479,-2933.54,0.00018767,2]
[377988047,1754651441489,-777.97,0.00018767,2]
[377988048,1754651441498,-731.56,0.00018767,2]
[377988049,1754651441508,-1371.6,0.00018767,2]
[377988050,1754651441519,-400.0,0.00018767,2]
[377988051,1754651441529,-400.0,0.00018767,2]
[377988052,1754651441540,-509.81,0.00018767,2]
[377988053,1754651441551,-1076.52,0.00018767,2]
[377988054,1754651441561,-1328.76,0.00018767,2]
[377988055,1754651441571,-877.81,0.00018767,2]
[377988056,1754651441581,-618.04,0.00018767,2]
[377988057,1754651441591,-400.0,0.00018767,2]
[377988058,1754651441601,-974.21,0.00018767,2]
[377988059,1754651441611,-904.14,0.00018767,2]
[377988060,1754651441621,-400.0,0.00018767,2]
[377988061,1754651441632,-1327.21,0.00018767,2]
[377988062,1754651441641,-589.6,0.00018767,2]
[377988063,1754651441651,-400.0,0.00018767,2]
[377988064,1754651441661,-1347.9,0.00018767,2]
[377988065,1754651441671,-465.88,0.00018767,2]
[377988066,1754651441681,-150.0,0.00018768,2]
[377988067,1754651441691,-250.62988588,0.00018773,2]
[377988068,1754651441701,-433.0,0.00018778,2]
[377988069,1754651441711,-150.0,0.00018778,2]
[377988070,1754651441721,-150.0,0.00018778,2]
[377988071,1754651441731,-151.92515212,0.00018778,2]
[377988072,1754651441741,-150.0,0.00018778,2]
[377988073,1754651441750,-150.0,0.00018778,2]
[377988074,1754651441760,-152.88783585,0.00018778,2]
[377988075,1754651441770,-500.0,0.00018778,2]
[377988076,1754651441780,-150.0,0.00018778,2]
[377988077,1754651441790,-150.0,0.00018778,2]
[377988078,1754651441800,-500.0,0.00018778,2]
[377988079,1754651441810,-150.0,0.00018783,2]
[377988080,1754651441820,-150.0,0.00018794,2]
[377988081,1754651441831,-150.0,0.00018798,2]
[377988082,1754651441840,-150.0,0.000188,2]
[377988083,1754651441850,-470.0,0.000188,2]
[377988084,1754651441860,-165.6,0.000188,2]
[377988085,1754651441870,-168.7454655,0.00018801,2]
[377988086,1754651441881,-150.0,0.00018801,2]
[377988087,1754651441891,-150.0,0.00018804,2]
[377988088,1754651441901,-150.0,0.00018819,2]
[377988089,1754651441911,-150.0,0.00018819,2]
[377988090,1754651441921,-150.0,0.0001882,2]
[377988091,1754651441931,-150.0,0.00018821,2]
[377988092,1754651441941,-150.0,0.00018823,2]
[377988093,1754651441951,-330.25689179,0.00018826,2]
[377988094,1754651441960,-150.0,0.00018829,2]
[377988095,1754651441970,-150.0,0.00018839,2]
[377988096,1754651441981,-150.0,0.00018843,2]
[377988097,1754651441990,-150.0,0.00018845,2]
[377988098,1754651442000,-150.0,0.00018852,2]
[377988099,1754651442010,-150.0,0.00018853,2]
[377988100,1754651442020,-150.0,0.00018856,2]
[377988101,1754651442030,-150.0,0.00018858,2]
[377988102,1754651442039,-150.0,0.0001886,2]
[377988103,1754651442049,-150.0,0.0001887,2]
[377988104,1754651442059,-150.0,0.00018872,2]
[377988105,1754651442068,-150.0,0.00018873,2]
[377988106,1754651442078,-150.0,0.00018874,2]
[377988107,1754651442088,-150.0,0.00018875,2]
[377988108,1754651442098,-150.0,0.00018878,2]
[377988109,1754651442109,-3364.0,0.00018879,2]
[377988110,1754651442120,-1252.0,0.00018879,2]
[377988111,1754651442130,-2025.0,0.00018879,2]
[377988112,1754651442140,-565.0,0.00018879,2]
[377988113,1754651442150,-959.0,0.00018879,2]
[377988114,1754651442160,-1294.0,0.00018879,2]
[377988115,1754651442172,-1653.0,0.00018879,2]
[377988116,1754651442182,-150.0,0.00018879,2]
[377988117,1754651442193,-150.0,0.00018879,2]
[377988118,1754651442202,-150.0,0.00018879,2]
[377988119,1754651442212,-892.0,0.00018879,2]
[377988120,1754651442223,-1171.0,0.00018879,2]
[377988121,1754651442233,-4142.0,0.00018879,2]
[377988122,1754651442244,-21198.219,0.00018879,2]
[377988123,1754651442254,-1997.582,0.00018879,2]
[377988124,1754651442263,-150.0,0.00018881,2]
[377988125,1754651442278,-150.0,0.00018884,2]
[377988126,1754651442287,-150.0,0.00018885,2]
[377988127,1754651442298,-1759.19052422,0.00018897,2]
[377988128,1754651442307,-5710.0794,0.00018898,2]
[377988129,1754651442319,-19529.659,0.00018898,2]
[377988130,1754651442329,-151.73772576,0.000189,2]
[377988131,1754651442338,-150.0,0.00018902,2]
[377988132,1754651442349,-150.0,0.00018906,2]
[377988133,1754651442359,-150.0,0.00018907,2]
[377988134,1754651442370,-150.0,0.00018916,2]
[377988135,1754651442381,-150.0,0.00018918,2]
[377988136,1754651442391,-150.0,0.00018918,2]
[377988137,1754651442402,-150.0,0.00018921,2]
[377988138,1754651442412,-150.0,0.00018928,2]
[377988139,1754651442422,-150.0,0.00018932,2]
[377988140,1754651442432,-150.0,0.00018935,2]
[377988141,1754651442442,-150.0,0.00018935,2]
[377988142,1754651442452,-10000.0,0.0001894,2]
[377988143,1754651442462,-150.0,0.00018943,2]
[377988144,1754651442472,-150.0,0.00018945,2]
[377988145,1754651442482,-150.0,0.00018951,2]
[377988146,1754651442492,-150.0,0.00018957,2]
[377988147,1754651442502,-150.0,0.00018957,2]
[377988148,1754651442513,-305.176,0.00018959,2]
[377988149,1754651442523,-700.0,0.0001897,2]
[377988150,1754651442534,-700.0,0.0001897,2]
[377988151,1754651442545,-700.0,0.0001897,2]
[377988152,1754651442555,-150.0,0.0001897,2]
[377988153,1754651442565,-150.0,0.00018971,2]
[377988154,1754651442575,-500.0,0.00018973,2]
[377988155,1754651442585,-500.0,0.00018973,2]
[377988156,1754651442595,-500.0,0.00018973,2]
[377988157,1754651442606,-500.0,0.00018973,2]
[377988158,1754651442616,-500.0,0.00018973,2]
[377988159,1754651442626,-500.0,0.00018973,2]
[377988160,1754651442636,-503.49778392,0.00018973,2]
[377988161,1754651442646,-500.0,0.00018973,2]
[377988162,1754651442656,-150.0,0.00018976,2]
[377988163,1754651442666,-150.0,0.00018978,2]
[377988164,1754651442677,-150.0,0.00018978,2]
[377988165,1754651442687,-150.0,0.0001898,2]
[377988166,1754651442698,-150.0,0.0001898,2]
[377988167,1754651442708,-150.0,0.00018981,2]
[377988169,1754651442718,-150.0,0.00018982,2]
[377988170,1754651442728,-150.0,0.00018983,2]
[377988171,1754651442738,-150.0,0.00018989,2]
[377988172,1754651442748,-178.26094198,0.0001899,2]
[377988173,1754651442758,-150.0,0.00018992,2]
[377988174,1754651442768,-150.0,0.00018994,2]
[377988175,1754651442779,-150.0,0.00018994,2]
[377988176,1754651442790,-7125.4750985,0.00018994,2]
[377988177,1754651442801,-150.0,0.00018995,2]
[377988178,1754651442812,-150.0,0.00018997,2]
[377988179,1754651442823,-500.0,0.00018997,2]
[377988180,1754651443078,-1308.1,0.00018997,2]
[377988181,1754651443089,-400.0,0.00018997,2]
[377988182,1754651443100,-1313.36,0.00018997,2]
[377988183,1754651443112,-1318.82,0.00018997,2]
[377988184,1754651443122,-1052.0,0.00018997,2]
[377988185,1754651443131,-1682.81,0.00018997,2]
[377988186,1754651443140,-2036.27,0.00018997,2]
[377988187,1754651443150,-1000.0,0.00018999,2]
[377988188,1754651443159,-500.0,0.00018999,2]
[377988189,1754651443168,-264.08,0.00018999,2]
[377988190,1754651443178,-599057.21508091,0.00019,2]
[377988191,1754651443189,-1548.95,0.00019,2]
[377988192,1754651443198,-151.0,0.00019,2]
[377988193,1754651443207,-152.49357,0.00019,2]
[377988194,1754651443219,-157.134371,0.00019,2]
[377988195,1754651443230,-151.0,0.00019,2]
[377988196,1754651443239,-151.0,0.00019,2]
[377988197,1754651443249,-150.0,0.00019,2]
[377988198,1754651443259,-6710.84112831,0.00019,2]
[377988199,1754651443270,-150.0,0.00019,2]
[377988200,1754651443281,-1726.70061619,0.00019,2]
[377988201,1754651443291,-153.001403,0.00019,2]
[377988202,1754651443302,-150.0,0.00019,2]
[377988203,1754651443312,-151.0,0.00019,2]
[377988204,1754651443323,-1001.63,0.00019,2]
[377988206,1754651443332,-151.0,0.00019,2]
[377988208,1754651443342,-151.0,0.00019,2]
[377988210,1754651443353,-151.0,0.00019,2]
[377988212,1754651443362,-151.0,0.00019,2]
[377988213,1754651443371,-1251.74721868,0.00019,2]
[377988216,1754651443382,-500.0,0.00019,2]
[377988218,1754651443391,-323.08970418,0.00019,2]
[377988220,1754651443401,-151.0,0.00019,2]
[377988222,1754651443411,-776.0,0.00019,2]
[377988224,1754651443420,-388.3409,0.00019,2]
[377988226,1754651443430,-722.0,0.00019,2]
[377988227,1754651443439,-500.0,0.00019,2]
[377988230,1754651443449,-500.0,0.00019,2]
[377988231,1754651443459,-500.0,0.00019,2]
[377988232,1754651443469,-544.0,0.00019,2]
[377988233,1754651443480,-625.93069,0.00019,2]
[377988234,1754651443490,-379.0,0.00019,2]
[377988235,1754651443500,-380.4694,0.00019,2]
[377988236,1754651443510,-185406.7895353,0.00019006,2]
[377988237,1754651443520,-1085.27,0.00019036,2]
[377988238,1754651443530,-1201.74,0.00019036,2]
[377988239,1754651443540,-1020.15,0.00019036,2]
[377988240,1754651443550,-1170.38,0.00019036,2]
[377988241,1754651443560,-1351.52,0.00019036,2]
[377988242,1754651443570,-1342.28,0.00019036,2]
[377988243,1754651443580,-451.58,0.00019036,2]
[377988244,1754651443590,-993.22,0.00019036,2]
[377988245,1754651443599,-400.0,0.00019036,2]
[377988246,1754651443609,-1504.26,0.00019036,2]
[377988247,1754651443619,-673.84,0.00019036,2]
[377988248,1754651443629,-1218.31,0.00019036,2]
[377988249,1754651443638,-998.45,0.00019036,2]
[377988250,1754651443649,-2204.29,0.00019036,2]
[377988252,1754651443659,-638.73,0.00019036,2]
[377988254,1754651443668,-400.0,0.00019036,2]
[377988255,1754651443678,-1322.64,0.00019036,2]
[377988256,1754651443688,-571.74,0.00019036,2]
[377988257,1754651443697,-652.18,0.00019036,2]
[377988258,1754651443707,-892.48,0.00019036,2]
[377988259,1754651443717,-1401.63,0.00019037,2]
[377988260,1754651443727,-402.23,0.00019037,2]
[377988261,1754651443736,-400.0,0.00019037,2]
[377988262,1754651443746,-351.444133,0.00019037,2]
[377988263,1754651443755,-1451.03,0.00019037,2]
[377988264,1754651443765,-429.086783,0.00019037,2]
[377988265,1754651443775,-1454.42,0.00019037,2]
[377988266,1754651443784,-497.37,0.00019037,2]
[377988267,1754651443794,-327.647211,0.00019037,2]
[377988268,1754651443803,-581.04,0.00019037,2]
[377988269,1754651443813,-400.0,0.00019037,2]
[377988270,1754651443823,-1025.46,0.00019037,2]
[377988271,1754651443832,-5044.37848674,0.00019037,2]
[377988272,1754651445811,-337.95501913,0.00018763,2]
[377988273,1754651445823,-120.24498087,0.00018763,2]
[377988274,1754651445832,-53.16151326,0.00019037,2]
[377988275,1754651445842,-138.01765709,0.00019037,2]
[377988276,1754651445859,-261.98234291,0.00019037,2]
[377988277,1754651445869,-669.2,0.00019037,2]
[377988278,1754651445880,-705.36,0.00019037,2]
[377988279,1754651445890,-856.38,0.00019037,2]
[377988280,1754651445900,-850.69,0.00019037,2]
[377988281,1754651445911,-827.46,0.00019037,2]
[377988282,1754651445921,-419.98,0.00019037,2]
[377988283,1754651445931,-2193.81,0.00019037,2]
[377988284,1754651445942,-1213.03,0.00019037,2]
[377988285,1754651445952,-1265.2,0.00019037,2]
[377988286,1754651445963,-400.0,0.00019037,2]
[377988287,1754651445973,-696.84,0.00019037,2]
[377988288,1754651445983,-400.0,0.00019037,2]
[377988289,1754651445993,-458.2,0.00019037,2]
[377988290,1754651446003,-279.19402461,0.00019038,2]
[377988291,1754651446013,-400.0,0.00019038,2]
[377988292,1754651446024,-400.0,0.00019038,2]
[377988293,1754651446034,-400.0,0.00019038,2]
[377988294,1754651446044,-400.0,0.00019038,2]
[377988295,1754651446055,-453.90696697,0.00019038,2]
[377988296,1754651446066,-572.65,0.00019038,2]
[377988297,1754651446077,-400.0,0.00019038,2]
[377988298,1754651446088,-400.0,0.00019038,2]
[377988299,1754651446098,-543.48,0.00019038,2]
[377988300,1754651446110,-514.82,0.00019038,2]
[377988301,1754651446120,-400.0,0.00019038,2]
[377988302,1754651446130,-407.48,0.00019038,2]
[377988303,1754651446140,-400.0,0.00019038,2]
[377988304,1754651446151,-852.7,0.00019038,2]
[377988305,1754651446162,-471.58,0.00019038,2]
[377988306,1754651446172,-400.0,0.00019038,2]
[377988307,1754651446182,-591.34,0.00019038,2]
[377988308,1754651446193,-799.25,0.00019038,2]
[377988309,1754651446203,-665.78,0.00019038,2]
[377988310,1754651446213,-400.0,0.00019038,2]
[377988311,1754651446224,-446.97,0.00019038,2]
[377988312,1754651446234,-712.62,0.00019038,2]
[377988313,1754651446245,-400.0,0.00019038,2]
[377988314,1754651446255,-755.04,0.00019038,2]
[377988315,1754651446267,-400.0,0.00019038,2]
[377988316,1754651446281,-615.57,0.00019038,2]
[377988317,1754651446292,-502.39,0.00019038,2]
[377988318,1754651446302,-564.35,0.00019038,2]
[377988319,1754651446312,-883.31,0.00019038,2]
[377988320,1754651446323,-400.0,0.00019038,2]
[377988321,1754651446333,-400.0,0.00019038,2]
[377988322,1754651446342,-492.35,0.00019038,2]
[377988323,1754651446354,-522.08,0.00019038,2]
[377988324,1754651446365,-400.0,0.00019038,2]
[377988325,1754651446375,-1144.07,0.00019038,2]
[377988326,1754651446384,-664.5,0.00019038,2]
[377988327,1754651446394,-400.0,0.00019038,2]
[377988328,1754651446404,-400.0,0.00019038,2]
[377988329,1754651446414,-400.0,0.00019038,2]
[377988331,1754651446424,-513.95,0.00019038,2]
[377988333,1754651446434,-586.11,0.00019038,2]
[377988335,1754651446444,-521.39,0.00019038,2]
[377988337,1754651446454,-400.0,0.00019038,2]
[377988339,1754651446464,-1064.13,0.00019038,2]
[377988341,1754651446476,-837.04,0.00019038,2]
[377988343,1754651446487,-400.23,0.00019038,2]
[377988345,1754651446497,-829.78,0.00019038,2]
[377988347,1754651446507,-400.0,0.00019038,2]
[377988349,1754651446517,-400.0,0.00019038,2]
[377988351,1754651446528,-621.82,0.00019038,2]
[377988354,1754651446538,-1161.3,0.00019038,2]
[377988356,1754651446548,-400.0,0.00019038,2]
[377988358,1754651446559,-539.17,0.00019038,2]
[377988360,1754651446569,-400.0,0.00019038,2]
[377988362,1754651446579,-400.0,0.00019038,2]
[377988364,1754651446590,-420.27804251,0.00019038,2]
[377988366,1754651446604,-664.34195749,0.00019038,2]
[377988368,1754651446614,-400.0,0.00019038,2]
[377988370,1754651446624,-400.0,0.00019038,2]
[377988372,1754651446634,-440.62249775,0.00019038,2]
[377988382,1754651446716,-348.17190651,0.00019038,2]
[377988384,1754651446728,-999.85919702,0.00019038,2]
[377988387,1754651446742,-90.75639872,0.00019038,2]
[377988389,1754651446752,-711.16,0.00019038,2]
[377988391,1754651446762,-400.0,0.00019038,2]
[377988393,1754651446772,-314.88325128,0.00019038,2]
[377988395,1754651446784,-85.11674872,0.00019038,2]
[377988397,1754651446795,-461.81,0.00019038,2]
[377988399,1754651446805,-434.24,0.00019038,2]
[377988402,1754651446815,-910.35,0.00019038,2]
[377988404,1754651446826,-400.0,0.00019038,2]